Cogmind - Beta 17 @@@ ROGUE MODE // 2026.07.29 @ 13:47:12 Player: pinbox Result: Destroyed by as-14564 with Assembled Heavy Rifle Performance ------------- Evolutions (1) 500 Regions Visited (4) 800 Robots Destroyed (9) 45 Value Destroyed (138) 138 Prototype IDs (1) 20 Alien Tech Used (0) 0 Bonus (-32) -32 TOTAL SCORE: 1471 Bonus ------- Friendly Fire -32 Cogmind --------- Core Integrity 0/400 Matter 214/300 Energy 69/100 System Corruption 0% Temperature Cool (0) Movement Core (50) Location -9/Mines Parts ------- > --- POWER (1) -------- (None) > --- PROPULSION (3) --- (None) > --- UTILITY (2) ------ (None) > --- WEAPON (3) ------- (None) > --- INVENTORY (5) ---- Coolant Injector Large Storage Unit Experimental Sensor Array Core Analyzer Transmission Jammer Peak State ------------ > --- POWER ------------ Light Ion Engine > --- PROPULSION ------- Light Treads Light Treads > --- UTILITY ---------- Large Storage Unit Experimental Sensor Array > --- WEAPON ----------- Assault Rifle Light Cannon > --- INVENTORY -------- Ion Engine Seismic Detector Small Laser [Rating: 15] Favorites ----------- Power Light Ion Engine Engine Light Ion Engine Propulsion Light Treads Treads Light Treads Utility Large Storage Unit Device Seismic Detector Storage Large Storage Unit Weapon Assault Rifle Energy Gun Small Laser Ballistic Gun Assault Rifle Ballistic Cannon Light Cannon Launcher Rocket Launcher Build | -11 -10 -10 -9 -9 ------- Run | Yrd Mat Min Mat Min Slots Evolved 2 | . . . 2 . Power . | . . . . . Propulsion 1 | . . . 1 . Utility . | . . . . . Weapon 1 | . . . 1 . Parts Attached 13 | 7 2 1 . 3 Power 1 | 1 . . . . Engine 1 | 1 . . . . Core . | . . . . . Reactor . | . . . . . Propulsion 2 | 2 . . . . Treads 2 | 2 . . . . Leg . | . . . . . Wheel . | . . . . . Hover . | . . . . . Flight . | . . . . . Utility 4 | 2 1 1 . . Device 2 | 1 . 1 . . Storage 2 | 1 1 . . . Processor . | . . . . . Hackware . | . . . . . Protection . | . . . . . Artifact . | . . . . . Weapon 6 | 2 1 . . 3 Energy Gun 2 | 1 . . . 1 Energy Cannon . | . . . . . Ballistic Gun 1 | 1 . . . . Ballistic Cannon 2 | . 1 . . 1 Launcher 1 | . . . . 1 Special Weapon . | . . . . . Impact Weapon . | . . . . . Slashing Weapon . | . . . . . Piercing Weapon . | . . . . . Special Melee Weapon . | . . . . . Unidentified Prototypes 1 | . . 1 . . Parts Lost 10 | . . . . 10 Power 1 | . . . . 1 Propulsion 2 | . . . . 2 Utility 1 | . . . . 1 Weapon 6 | . . . . 6 Highest Loss Streak 10 | . . . . 10 To Critical Strikes . | . . . . . Average Backups 4 | . 1 3 4 6 Power . | . 1 1 1 . Propulsion . | . . . . . Utility 1 | . . 1 2 3 Weapon 1 | . . 1 1 1 Tool/Special . | . . . . . Unused Backups 6 | . . . . 6 Power 1 | . . . . 1 Propulsion . | . . . . . Utility 5 | . . . . 5 Weapon . | . . . . . Tool/Special . | . . . . . Average Slot Usage (%) 92 | . 98 100 79 81 Engine 12 | . 14 14 11 9 Treads 24 | . 28 28 22 20 Device 12 | . 14 14 11 9 Storage 12 | . 14 14 11 11 Energy Gun 5 | . 11 . 2 10 Ballistic Gun 12 | . 14 14 11 9 Ballistic Cannon 11 | . 2 14 11 10 Peak Build Rating 15 | 7 7 15 9 12 Average Rating 8 | 5 6 7 8 9 On Entrance 6 | . 7 7 8 9 Avg Prop Armor Cover (%) . | . . . . . Naked Turns 3 | . . . . 3 Heaviest Build 30 | 12 29 29 30 30 Greatest Support 40 | 40 40 40 40 40 Greatest Overweight (x) 6 | . . . . 6 Average Overweight (x) . | . . . . . Largest Inventory Capacity 15 | 8 15 15 15 15 Average Capacity 14 | 7 14 15 15 14 Most Carried 10 | 2 2 5 5 10 Average Carried 4 | . 1 3 4 6 Final Capacity 15 | 8 15 15 15 5 Final Carried 5 | 1 2 5 4 5 Class Distribution -------------------- 68% | Mutant 31% | Gunner Dominant Class ---------------- Mutant | -10/Materials Mutant | -10/Mines Mutant | -9/Materials Gunner | -9/Mines Resources | -11 -10 -10 -9 -9 ----------- Run | Yrd Mat Min Mat Min Matter Collected 548 | 226 28 89 . 205 Remotely . | . . . . . Salvage Created 226 | 18 28 85 . 95 Parts 15 | 4 4 2 . 5 Haulers Intercepted . | . . . . . Recyclers Shooed . | . . . . . Parts Field Recycled . | . . . . . Retrieved Matter . | . . . . . Parts Self-Destructed . | . . . . . Prevented . | . . . . . Parts Restored . | . . . . . Kills | -11 -10 -10 -9 -9 ------- Run | Yrd Mat Min Mat Min Combat Hostiles Destroyed 19 | . 2 2 . 15 Guns 6 | . 2 1 . 3 Cannons 4 | . . 1 . 3 AOE 9 | . . . . 9 Classes Destroyed 5 | 1 1 1 . 2 Tunneler 1 | 1 . . . . Swarmer 5 | . 2 . . 3 Grunt 2 | . . 2 . . Zionite 1 | . . . . 1 Assembled 12 | . . . . 12 Best Kill Streak 12 | 1 2 2 . 12 Combat Bots Only 12 | . 2 2 . 12 Max Kills in Single Turn 3 | 1 1 1 . 3 Gunslinging . | . . . . . Exploded 3 | . . . . 3 Melee . | . . . . . Uniques/NPCs Destroyed . | . . . . . Combat | -11 -10 -10 -9 -9 -------- Run | Yrd Mat Min Mat Min Hostile Shots Fired 151 | . 17 9 . 125 Missed 45 | . 6 3 . 36 Hits 106 | . 11 6 . 89 Melee 11 | . . . . 11 Projectile 95 | . 11 6 . 78 Critical Strikes 1 | . . 1 . . Damage Taken 1501 | . 97 82 . 1322 Core 476 | . 25 47 . 404 Absorbed by Shields . | . . . . . Core Remaining (%) 85 | 100 . 71 . . Volleys Fired 33 | 1 9 5 . 18 Largest 3 | 2 2 2 . 3 Hottest 115 | 60 60 50 . 115 Shots Fired 64 | 2 16 10 . 36 Gun 41 | 2 16 5 . 18 Cannon 18 | . . 5 . 13 Launcher 5 | . . . . 5 Special . | . . . . . Kinetic 40 | 1 9 10 . 20 Thermal 19 | 1 7 . . 11 Explosive 5 | . . . . 5 Electromagnetic . | . . . . . Robot Hit Streak 9 | 1 2 8 . 9 Robot Miss Streak 9 | 1 8 1 . 9 Penetration Max . | . . . . . Secondary Targets . | . . . . . Shots Hit Robots 24 | 1 4 8 . 11 Core Hits 33 | 1 3 5 . 24 Critical Kills 1 | 1 . . . . Critical Parts Destroyed . | . . . . . Critical Strikes 1 | 1 . . . . Destroy 1 | 1 . . . . Melee Attacks . | . . . . . Impact . | . . . . . Slashing . | . . . . . Piercing . | . . . . . Sneak Attacks . | . . . . . Combat Hostiles . | . . . . . Follow-up Attacks . | . . . . . Damage Inflicted 1147 | 12 69 125 . 941 Guns 200 | 12 57 53 . 78 Cannons 190 | . . 70 . 120 Explosions 738 | . . . . 738 Melee . | . . . . . Ramming 19 | . 12 2 . 5 Kinetic 302 | 12 36 123 . 131 Thermal 88 | . 21 . . 67 Explosive 738 | . . . . 738 Electromagnetic . | . . . . . Impact . | . . . . . Slashing . | . . . . . Piercing . | . . . . . Highest Corruption . | . . . . . Average Corruption . | . . . . . Corruption Purged . | . . . . . Corruption Blocked . | . . . . . Overload Shots . | . . . . . Overflow Damage 18 | . . . . 18 Projectiles . | . . . . . Explosions 18 | . . . . 18 Melee . | . . . . . Knockbacks 1 | . . . . 1 Impact . | . . . . . Kinetic 1 | . . . . 1 Secondary . | . . . . . Self-Inflicted Damage 40 | . . . . 40 Shots 2 | . . . . 2 Rammed 4 | . 1 1 . 2 Targets Rammed 4 | . 1 1 . 2 Kicked . | . . . . . Crushed . | . . . . . Highest Temperature 120 | . . 9 . 120 Average Temperature 45 | . . 3 . 52 Received Heat Transfer 143 | . . 63 . 80 Siege Activations . | . . . . . Martial Activations . | . . . . . Shielding Activations . | . . . . . Robots Disrupted . | . . . . . Combat Hostiles . | . . . . . Robots Corrupted . | . . . . . Combat Hostiles . | . . . . . Parts Fried . | . . . . . Impact Corruptions . | . . . . . Robots Melted . | . . . . . Combat Hostiles . | . . . . . Parts Melted . | . . . . . Heat Transferred 187 | . 50 . . 137 Parts Sabotaged . | . . . . . Parts Stolen . | . . . . . Parts Stripped . | . . . . . Power Chain Reactions . | . . . . . Alert | -11 -10 -10 -9 -9 ------- Run | Yrd Mat Min Mat Min Maximum Alert Level . | . . . . . Low Security (%) 100 | 100 100 100 100 100 Level 1 . | . . . . . Level 2 . | . . . . . Level 3 . | . . . . . Level 4 . | . . . . . Level 5 . | . . . . . High Security . | . . . . . Max Security . | . . . . . Peak Influence 62 | 5 60 55 . 62 Initial 15 | . . 15 . . Average 9 | . 25 6 . 13 Influence Increases 237 | 5 80 50 . 102 Destroy 0b10 Robot/C 140 | . 40 40 . 60 Destroy 0b10 Robot/NC 5 | 5 . . . . Destroy Leader 30 | . 10 10 . 10 Allied During Kill 2 | . . . . 2 Destroy Structure 30 | . . . . 30 Partial Spotted 15 | . 15 . . . Lose Combat Pursuer 15 | . 15 . . . Influence Decreases 237 | 5 40 90 . 102 Entered New Map 25 | . . 25 . . Time Decay 190 | 5 40 65 . 80 Lost Part 22 | . . . . 22 Squads Dispatched 1 | . . . . 1 Investigation 1 | . . . . 1 Extermination . | . . . . . Reinforcement . | . . . . . Assault . | . . . . . Garrison . | . . . . . Intercept . | . . . . . Searches Triggered . | . . . . . Construction Impeded . | . . . . . Haulers Reinforced . | . . . . . Active Scanning Responses . | . . . . . Cargo Convoy Interrupts . | . . . . . Stealth | -11 -10 -10 -9 -9 --------- Run | Yrd Mat Min Mat Min Distress Signals . | . . . . . Communications Jammed . | . . . . . Distress Signals . | . . . . . Times Spotted 29 | . 3 2 1 23 Peak Tracking Total 18 | . 3 2 1 18 Tactical Retreats 2 | . 1 . . 1 Traps | -11 -10 -10 -9 -9 ------- Run | Yrd Mat Min Mat Min Traps Triggered . | . . . . . Indirectly . | . . . . . Trap Hack Attempts . | . . . . . Triggered . | . . . . . Disarmed . | . . . . . Reprogrammed . | . . . . . Reused . | . . . . . Traps Extracted . | . . . . . Installed . | . . . . . Triggered . | . . . . . Machines | -11 -10 -10 -9 -9 ---------- Run | Yrd Mat Min Mat Min Machines Disabled . | . . . . . Max in Single Turn . | . . . . . Machines Repaired . | . . . . . Machines Dismantled . | . . . . . Machines Sabotaged . | . . . . . Overloaded Fab Kills . | . . . . . Hacking | -11 -10 -10 -9 -9 --------- Run | Yrd Mat Min Mat Min Machines Accessed 1 | . . . . 1 Terminals . | . . . . . Fabricators . | . . . . . Repair Stations . | . . . . . Recycling Units . | . . . . . Scanalyzers . | . . . . . Garrison Access . | . . . . . Total Hacks 1 | . . . . 1 Successful 1 | . . . . 1 Failed . | . . . . . Catastrophic . | . . . . . Database Lockouts . | . . . . . Manual . | . . . . . Terminals . | . . . . . Fabricators . | . . . . . Repair Stations . | . . . . . Recycling Units . | . . . . . Scanalyzers . | . . . . . Garrison Access . | . . . . . Terminal Hacks 1 | . . . . 1 Open Door 1 | . . . . 1 Fabricator Hacks . | . . . . . Repair Station Hacks . | . . . . . Recycling Unit Hacks . | . . . . . Scanalyzer . | . . . . . Garrison Access Hacks . | . . . . . Unauthorized Hacks . | . . . . . Terminals . | . . . . . Fabricators . | . . . . . Repair Stations . | . . . . . Recycling Units . | . . . . . Scanalyzers . | . . . . . Garrison Access . | . . . . . Data Cores Recovered . | . . . . . Used . | . . . . . Hacking Detections . | . . . . . Full Trace Events . | . . . . . Feedback Events . | . . . . . Feedback Blocked . | . . . . . Robot Schematics Acquired . | . . . . . Robots Built . | . . . . . Authchips . | . . . . . Time . | . . . . . Total Robot Build Rating . | . . . . . Part Schematics Acquired . | . . . . . Parts Built . | . . . . . Authchips . | . . . . . Time . | . . . . . Total Part Build Rating . | . . . . . Part Studies Acquired . | . . . . . Parts Repaired . | . . . . . Time . | . . . . . Parts Recycled . | . . . . . Recycled Matter . | . . . . . Retrieved Matter . | . . . . . Retrieved Components . | . . . . . Parts Scanalyzed . | . . . . . Part Schematics Acquired . | . . . . . Parts Damaged . | . . . . . Bothacking | -11 -10 -10 -9 -9 ------------ Run | Yrd Mat Min Mat Min Used RIF Installer . | . . . . . Robots Hacked . | . . . . . Non-combat . | . . . . . Combat . | . . . . . Robot Hacks Applied . | . . . . . Relay Couplers Released . | . . . . . Fabnet Peak Effective % . | . . . . . Robots Rewired . | . . . . . Allies Hacked . | . . . . . Hacks Repelled . | . . . . . Allies | -11 -10 -10 -9 -9 -------- Run | Yrd Mat Min Mat Min Total Allies 2 | . . 2 . . Largest Group 2 | . . 2 2 2 Highest-Rated Group 45 | . . 45 45 45 Highest-Rated Ally 31 | . . 31 31 31 Total Orders . | . . . . . Ally Attacks 4 | . . . . 4 Total Damage 63 | . . . . 63 Kills . | . . . . . Allies Corrupted . | . . . . . Allies Melted . | . . . . . Intel | -11 -10 -10 -9 -9 ------- Run | Yrd Mat Min Mat Min Active Infowar (turns) 997 | 21 129 483 67 297 Sensors 1 | . . 1 . . Seismic 996 | 21 129 482 67 297 Robot Analysis Total . | . . . . . Derelict Logs Recovered 2 | . . 1 . 1 Drone Launches . | . . . . . Drone Recoveries . | . . . . . Exploration | -11 -10 -10 -9 -9 ------------- Run | Yrd Mat Min Mat Min Turns Passed 1123 | 91 129 487 67 349 Spaces Moved 559 | 49 62 233 39 176 Core 8 | 1 . . . 7 Treads 551 | 48 62 233 39 169 Legs . | . . . . . Wheels . | . . . . . Hover . | . . . . . Flight . | . . . . . Fastest Speed 50 | 50 160 160 160 50 Average Speed 158 | 157 160 160 160 157 Slowest Speed 350 | 160 160 160 160 350 Overloaded Moves . | . . . . . Propulsion Burnouts . | . . . . . Robots Hopped . | . . . . . Potential Cave-ins . | . . . . . Cave-ins Triggered . | . . . . . Exploration Rate (%) 21 | 3 11 41 8 43 Regions Visited 4 Branch Regions 2 Pre-discovered Areas . | . . . . . Known Exits Taken . | . . . . . Unknown Exits Taken 4 | 1 1 1 1 . Scrap Searched 1 | . . . . 1 Spaces Dug . | . . . . . Terrain Destroyed 45 | . . . . 45 Melee . | . . . . . Projectile 3 | . . . . 3 AOE 42 | . . . . 42 Terrain Rammed . | . . . . . Walls Destroyed . | . . . . . Machines Disabled . | . . . . . Actions | -11 -10 -10 -9 -9 --------- Run | Yrd Mat Min Mat Min Total 732 | 58 75 337 44 218 Wait 107 | . . 93 5 9 Move 555 | 48 61 232 38 176 Hop . | . . . . . Pick Up 10 | 2 . 2 . 6 Fast Attach 8 | 6 1 1 . . Attach 6 | 1 . 1 1 3 Detach 4 | . 1 2 . 1 Swap 1 | . 1 . . . Drop 4 | . 1 . . 3 Fire 33 | 1 9 5 . 18 Melee . | . . . . . Ram . | . . . . . Kick . | . . . . . Crush 4 | . 1 1 . 2 Escape Stasis . | . . . . . Rewire . | . . . . . Trap . | . . . . . Miscellaneous . | . . . . . Route ------- -11/Scrapyard -10/Materials -10/Mines -9/Materials -9/Mines History --------- Turn | Location | Event 48 | -11/Scrapyard | Discovered new exit (range 14) 92 | -11/Scrapyard | Entered Materials 172 | -10/Materials | Discovered new exit (range 16) 221 | -10/Materials | Entered Mines 295 | -10/Mines | Found a damaged Exp. Sensor Array with a note attached 299 | -10/Mines | Found Prototype Device 299 | -10/Mines | Identified Exp. Sensor Array 322 | -10/Mines | Build established: Mutant 394 | -10/Mines | Learned Materials garrison access intel 678 | -10/Mines | Discovered new exit (range 8) 685 | -10/Mines | Received a Rocket Launcher from a helpful Derelict 708 | -10/Mines | Entered Materials 708 | -9/Materials | Accompanied by 2 allies 708 | -9/Materials | Evolved 2 slots: Propulsion x1, Weapon x1 713 | -9/Materials | Led the pair of lost Derelicts to an unsafe place 761 | -9/Materials | Discovered new exit (range 4) 775 | -9/Materials | Entered Mines 775 | -9/Mines | Accompanied by 2 allies 888 | -9/Mines | Met a Derelict bent on vengeance 903 | -9/Mines | Learned location of 1 exit from Materials 940 | -9/Mines | Met a Derelict shopkeep closing up shop 1045 | -9/Mines | Build established: Gunner 1057 | -9/Mines | Assembled infested the area 1062 | -9/Mines | Assisted by a Guerilla fighting off Assembled 1108 | -9/Mines | Core integrity fell below 50% 1121 | -9/Mines | Core integrity fell below 20% 1124 | -9/Mines | Destroyed by as-14564 with Assembled Heavy Rifle Last Messages --------------- 01094_ Destroyed Asb. Hover Unit. 01094_ as-13280 destroyed. 01096_ Sml. Laser destroyed. 01096_ Rocket Launcher destroyed. 01096_ Lgt. Treads destroyed. 01098_ Knocked back. 01099_ U-05 Engineer destroyed. 01100_ as-34657 destroyed. 01102_ Knocked back. 01103_ as-21712 destroyed. 01107_ K-01 Serf collects debris. 01110_ Beamcaster destroyed. 01112_ The unstable cave ceiling collapses. 01112_ K-01 Serf collects debris. 01112_ as-78560 destroyed. 01114_ as-14564 knocked back. 01115_ Adv. Assault Cannon destroyed. 01119_ Dropped Ion Engine. 01120_ Dropped Hcp. Matter Pod. 01120_ Dropped Coolant Injector. Map ----- +----------------------------------------------------+ | ??## ????????????????## =]! #?????# #???? | | ???###?????????????????#### !%! #?????## ##???? | | ??????????????????????????##*== ##??????###????? | | ???????????????????????????#%! ##??????????????? | | ????????????????????????###!== ##???????????????? | | ??????????????????????## # "#???????????????? | | ??????????????????????# [! =%####????????????? | | ????????????????????### =% * #???????????? | | ????????????????????# *= # % #??????????? | | ????????????????????# ## #?????????? | | ???????????????????## ## #????????? | | ???????????? ????## ## * #????????? | | ?????????? ? ??#" % ## ##????????? | | ??????????# ?# #??# % #?????????? | | ???????????# ## #???# ?????????? | | ???????????# #????# ?????????? | | ???????????# % #???????? ??????????? | | ???????????## ####; ##?????????????????????? | | ????????????#### ????#; !#??????????????????????? | | ???????????????##?????##!*#??????????????????????? | | ???????????????????????# #??????????????????????? | | ???????????????????????# #??????????????????????? | | ???????????????????????# #??????????????????????? | | ???????????????????????# #??????????????????????? | | ???????????????????????# #??????????????????????? | | ???????????????????????# @#??????????????????????? | | ???????????????????????# #??????????????????????? | | ???????????????????????# #??????????????????????? | | ???????????????????????# #??????????????????????? | | ???????????????????????# #??????????????????????? | | ???????????????????????# ??????????????????????? | | ???????????????????????# ??????????????????????? | | ???????????????????????####??????????????????????? | | ?????????????????????????????????????????????????? | | ?????????????????????????????????????????????????? | | ?????????????????????????????????????????????????? | | ?????????????????????????????????????????????????? | | ?????????????????????????????????????????????????? | | ?????????????????????????????????????????????????? | | ?????????????????????????????????????????????????? | | ?????????????????????????????????????????????????? | | ?????????????????????????????????????????????????? | | ?????????????????????????????????????????????????? | | ?????????????????????????????????????????????????? | | ?????????????????????????????????????????????????? | | ?????????????????????????????????????????????????? | | ?????????????????????????????????????????????????? | | | | | | | +----------------------------------------------------+ Best States ------------- Heat Dissipation 28 Energy Generation 10 Energy Capacity 125 Matter Stores 300 Matter Capacity 300 Sight Range 16 Robot Scan Range 20 Terrain Scan Density 10 Evasion (%) 40 Recoil Reduction 2 Item Schematics ----------------- None Robot Schematics ------------------ None Fabricated ------------ Nothing Repaired ---------- Nothing Studied --------- None Alien Tech Used ----------------- None Achievements -------------- None Challenges ------------ None Game ------ Seed PartitionRemoteBasin Manual? 0 Play Time 00:08:25 Cumulative 101.0 hours Start 2026.07.29 @ 13:41:31 End 2026.07.29 @ 13:47:12 Sessions 1 Manual Loads 0 Difficulty Rogue Special Mode None Game No. 99 Rogue 99 Adventurer 0 Explorer 0 Win Type - Total 3 Types 2/0/0/0/0/0/0/0/0/1 Lore% 60 Gallery% 53 Achievement% 46 Wizard Run 0 Options --------- Layout 1 ASCII 0 Keyboard 1 Movement Numpad Keybinds 1 Fullscreen 2 Font 24/Smallcaps Map View 50x40 Zoom Use 0% Tactical HUD 1 Map Filters NONE Filters NONE Steam 1 RUN: f62ac302-5531-448e-bc40-dfe141322827